Cogmind - Beta 13 @@@ ROGUE MODE // 2024.03.14 @ 00:51:00 Player: opdo Result: Destroyed by S-27 Virus with Autogun Performance ------------- Evolutions (1) 500 Regions Visited (6) 1200 Robots Destroyed (19) 95 Value Destroyed (583) 583 Prototype IDs (4) 80 Alien Tech Used (0) 0 Bonus (600) 600 TOTAL SCORE: 3058 Bonus ------- Met Imprinter 300 Was Imprinted 300 Cogmind --------- Core Integrity 0/400 Matter 290/300 Energy 100/100 System Corruption 0% Temperature Cool (0) Movement Core (150) Ox2 Location -6/Proximity Caves Parts ------- > --- POWER (1) -------- (None) > --- PROPULSION (2) --- (None) > --- UTILITY (3) ------ Small Storage Unit Makeshift Terrain Scan Processor > --- WEAPON (3) ------- Scythe > --- INVENTORY (8) ---- Visual Processing Unit Sensor Array Melee Analysis Suite Peak State ------------ > --- POWER ------------ Light Ion Engine > --- PROPULSION ------- Makeshift Flight Unit Makeshift Flight Unit > --- UTILITY ---------- Small Storage Unit Makeshift Terrain Scan Processor Hacking Drone Bay > --- WEAPON ----------- Advanced Beam Cannon Makeshift Shrapnel Gun Scythe > --- INVENTORY -------- Makeshift Flight Unit Visual Processing Unit Sensor Array Melee Analysis Suite Flak Gun [Rating: 34] Favorites ----------- Power Ion Engine Engine Ion Engine Power Core Light Nuclear Core Propulsion Makeshift Flight Unit Leg Aluminum Leg Wheel Wheel Hover Unit Hover Unit Flight Unit Makeshift Flight Unit Utility Small Storage Unit Device Sensor Array Storage Small Storage Unit Processor Makeshift Terrain Scan Processor Protection Hardened Light Armor Plating Weapon Advanced Beam Cannon Energy Gun Makeshift Laser Energy Cannon Advanced Beam Cannon Ballistic Gun Assault Rifle Ballistic Cannon Light Cannon Slashing Weapon Scythe Build | -11 -10 -10 -9 -9 -7 -6 ------- Run | Yrd Mat Min Mat Min Zio Pro Slots Evolved 2 | . . . 2 . . . Power . | . . . . . . . Propulsion . | . . . . . . . Utility 1 | . . . 1 . . . Weapon 1 | . . . 1 . . . Parts Attached 33 | 6 1 3 12 . 7 4 Power 4 | 1 . 1 1 . 1 . Engine 3 | 1 . . 1 . 1 . Core 1 | . . 1 . . . . Reactor . | . . . . . . . Propulsion 11 | 2 . . 5 . 3 1 Treads . | . . . . . . . Leg 3 | 2 . . . . 1 . Wheel 3 | . . . 3 . . . Hover 2 | . . . 2 . . . Flight 3 | . . . . . 2 1 Utility 6 | 1 1 . 2 . 2 . Device 2 | . 1 . . . 1 . Storage 2 | 1 . . 1 . . . Processor 1 | . . . . . 1 . Hackware . | . . . . . . . Protection 1 | . . . 1 . . . Artifact . | . . . . . . . Weapon 12 | 2 . 2 4 . 1 3 Energy Gun 2 | . . . 1 . 1 . Energy Cannon 1 | . . . 1 . . . Ballistic Gun 7 | 2 . 1 1 . . 3 Ballistic Cannon 1 | . . 1 . . . . Launcher . | . . . . . . . Special Weapon . | . . . . . . . Impact Weapon . | . . . . . . . Slashing Weapon 1 | . . . 1 . . . Piercing Weapon . | . . . . . . . Special Melee Weapon . | . . . . . . . Unidentified Prototypes 2 | . . . 1 . 1 . Parts Lost 14 | . . . 5 . . 9 Power 2 | . . . 1 . . 1 Propulsion 5 | . . . 2 . . 3 Utility 1 | . . . . . . 1 Weapon 6 | . . . 2 . . 4 Highest Loss Streak 5 | . . . 2 . . 5 To Critical Strikes . | . . . . . . . Average Slot Usage (%) 91 | . 97 100 97 77 86 90 Engine 9 | . 14 13 2 11 11 7 Core 2 | . . . 8 . . . Leg 8 | . 28 28 6 . 2 . Wheel 4 | . . . 8 11 5 . Flight 6 | . . . . . 10 19 Device 11 | . 12 14 11 11 11 11 Storage 12 | . 14 14 16 11 11 11 Processor 4 | . . . . . 7 11 Protection 2 | . . . 5 11 3 . Energy Gun 1 | . . . 3 . 2 . Energy Cannon 8 | . . . 10 11 11 7 Ballistic Gun 8 | . 28 21 11 . . 11 Ballistic Cannon 1 | . . 6 . . . . Slashing Weapon 7 | . . . 6 11 11 11 Naked Turns . | . . . . . . . Heaviest Build 24 | 14 15 16 24 22 22 17 Greatest Support 20 | 20 20 20 20 10 20 16 Greatest Overweight (x) 7 | 1 . . 7 2 2 1 Average Overweight (x) . | . . . 1 2 . . Largest Inventory Capacity 8 | 8 8 8 8 8 8 8 Average Capacity 7 | 6 8 8 8 8 8 8 Most Carried 8 | 5 2 6 5 3 8 5 Average Carried 4 | 1 1 3 3 3 5 4 Final Capacity 8 | 8 8 8 8 8 8 8 Final Carried 6 | 1 1 5 3 3 6 3 Class Distribution -------------------- 84% | Mutant 8% | Skirmisher 6% | Derelict-Mutant Dominant Class ---------------- Mutant | -10/Materials Mutant | -10/Mines Mutant | -9/Materials Mutant | -9/Mines Mutant | -7/Zion Derelict-Mutant | -6/Proximity Caves Resources | -11 -10 -10 -9 -9 -7 -6 ----------- Run | Yrd Mat Min Mat Min Zio Pro Matter Collected 655 | 170 . 155 205 . 71 54 Remotely . | . . . . . . . Salvage Created 584 | . . 48 373 . . 163 Parts 36 | . . 4 22 . . 10 Haulers Intercepted . | . . . . . . . Recyclers Shooed . | . . . . . . . Parts Field Recycled . | . . . . . . . Retrieved Matter . | . . . . . . . Parts Self-Destructed 6 | . . . . . . 6 Prevented . | . . . . . . . Kills | -11 -10 -10 -9 -9 -7 -6 ------- Run | Yrd Mat Min Mat Min Zio Pro Combat Hostiles Destroyed 16 | . . 2 9 . . 5 Melee 6 | . . . 3 . . 3 Guns 4 | . . 1 1 . . 2 Cannons 6 | . . 1 5 . . . Classes Destroyed 6 | . . 1 5 . . . Operator 1 | . . . 1 . . . Watcher 2 | . . . 2 . . . Swarmer 6 | . . . 2 . . 4 Grunt 7 | . . 2 5 . . . Duelist 1 | . . . 1 . . . Sentry 2 | . . . 1 . . 1 Best Kill Streak 5 | . . 2 5 . . 3 Combat Bots Only 3 | . . 2 3 . . 3 Max Kills in Single Turn 1 | . . 1 1 . . 1 Gunslinging . | . . . . . . . Exploded . | . . . . . . . Melee 1 | . . . 1 . . 1 Uniques/NPCs Destroyed . | . . . . . . . Combat | -11 -10 -10 -9 -9 -7 -6 -------- Run | Yrd Mat Min Mat Min Zio Pro Hostile Shots Fired 225 | . 8 10 105 . . 102 Missed 67 | . 3 5 37 . . 22 Damage Taken 1882 | . 70 64 783 . . 965 Core 423 | . 10 11 172 . . 230 Absorbed by Shields . | . . . . . . . Core Remaining (%) 95 | 100 . 91 . . . . Volleys Fired 37 | . 2 6 23 . . 6 Largest 3 | . 2 2 3 . . 2 Hottest 112 | . 40 59 112 . . 51 Shots Fired 66 | . 4 12 42 . . 8 Gun 37 | . 4 6 19 . . 8 Cannon 29 | . . 6 23 . . . Launcher . | . . . . . . . Special . | . . . . . . . Kinetic 31 | . 4 12 7 . . 8 Thermal 23 | . . . 23 . . . Explosive . | . . . . . . . Electromagnetic 12 | . . . 12 . . . Robot Hit Streak 9 | . 4 6 9 . . 5 Robot Miss Streak 5 | . . 3 5 . . 3 Penetration Max . | . . . . . . . Secondary Targets . | . . . . . . . Shots Hit Robots 57 | . 4 8 32 . . 13 Core Hits 30 | . . 5 15 . . 10 Critical Kills . | . . . . . . . Critical Parts Destroyed . | . . . . . . . Critical Strikes 1 | . . . 1 . . . Sever 1 | . . . 1 . . . Melee Attacks 27 | . . . 15 . . 12 Impact . | . . . . . . . Slashing 27 | . . . 15 . . 12 Piercing . | . . . . . . . Sneak Attacks . | . . . . . . . Combat Hostiles . | . . . . . . . Follow-up Attacks . | . . . . . . . Damage Inflicted 1299 | 6 47 163 737 . . 346 Guns 394 | . 47 107 151 . . 89 Cannons 373 | . . 48 325 . . . Explosions . | . . . . . . . Melee 518 | . . . 261 . . 257 Ramming 14 | 6 . 8 . . . . Kinetic 362 | . 47 155 71 . . 89 Thermal 325 | . . . 325 . . . Explosive . | . . . . . . . Electromagnetic 80 | . . . 80 . . . Impact . | . . . . . . . Slashing 518 | . . . 261 . . 257 Piercing . | . . . . . . . Highest Corruption . | . . . . . . . Average Corruption . | . . . . . . . Corruption Purged . | . . . . . . . Corruption Blocked . | . . . . . . . Overload Shots . | . . . . . . . Overflow Damage 1 | . . . 1 . . . Projectiles . | . . . . . . . Explosions . | . . . . . . . Melee 1 | . . . 1 . . . Knockbacks . | . . . . . . . Impact . | . . . . . . . Kinetic . | . . . . . . . Secondary . | . . . . . . . Self-Inflicted Damage . | . . . . . . . Shots . | . . . . . . . Rammed . | . . . . . . . Targets Rammed 5 | 2 . 3 . . . . Kicked 5 | 2 . 3 . . . . Crushed . | . . . . . . . Highest Temperature 488 | . 8 9 488 . . . Average Temperature 158 | . 4 6 173 . . . Received Heat Transfer 456 | . 42 54 282 . . 78 Effects 7 | . . . 7 . . . Shutdowns 2 | . . . 2 . . . Interference 2 | . . . 2 . . . Matter Decay 1 | . . . 1 . . . Short Circuit 1 | . . . 1 . . . Damage (minor) 1 | . . . 1 . . . Siege Activations . | . . . . . . . Robots Corrupted . | . . . . . . . Combat Hostiles . | . . . . . . . Parts Fried . | . . . . . . . Impact Corruptions . | . . . . . . . Robots Melted . | . . . . . . . Combat Hostiles . | . . . . . . . Parts Melted 2 | . . . 2 . . . Heat Transferred 592 | . . . 592 . . . Parts Sabotaged . | . . . . . . . Parts Stolen . | . . . . . . . Parts Stripped . | . . . . . . . Power Chain Reactions . | . . . . . . . Alert | -11 -10 -10 -9 -9 -7 -6 ------- Run | Yrd Mat Min Mat Min Zio Pro Peak Influence 248 | . . 50 248 19 . . Initial 19 | . . . 19 19 . . Average 48 | . . 4 100 19 . . Maximum Alert Level 1 | . . . 1 . . . Low Security (%) 93 | 100 100 100 85 100 . . Level 1 6 | . . . 14 . . . Level 2 . | . . . . . . . Level 3 . | . . . . . . . Level 4 . | . . . . . . . Level 5 . | . . . . . . . High Security . | . . . . . . . Max Security . | . . . . . . . Squads Dispatched 1 | . . . 1 . . . Investigation . | . . . . . . . Extermination . | . . . . . . . Reinforcement 1 | . . . 1 . . . Assault . | . . . . . . . Garrison . | . . . . . . . Intercept . | . . . . . . . Searches Triggered . | . . . . . . . Construction Impeded . | . . . . . . . Haulers Reinforced . | . . . . . . . Active Scanning Responses . | . . . . . . . Cargo Convoy Interrupts . | . . . . . . . Stealth | -11 -10 -10 -9 -9 -7 -6 --------- Run | Yrd Mat Min Mat Min Zio Pro Distress Signals 1 | . . . 1 . . . Communications Jammed . | . . . . . . . Distress Signals . | . . . . . . . Times Spotted 31 | . 2 2 17 . . 10 Peak Tracking Total 7 | . 2 2 7 . . 4 Tactical Retreats 1 | . . . . . . 1 Traps | -11 -10 -10 -9 -9 -7 -6 ------- Run | Yrd Mat Min Mat Min Zio Pro Traps Triggered . | . . . . . . . Indirectly . | . . . . . . . Trap Hack Attempts . | . . . . . . . Triggered . | . . . . . . . Disarmed . | . . . . . . . Reprogrammed . | . . . . . . . Reused . | . . . . . . . Traps Extracted . | . . . . . . . Installed . | . . . . . . . Triggered 1 | . . . . . . 1 Machines | -11 -10 -10 -9 -9 -7 -6 ---------- Run | Yrd Mat Min Mat Min Zio Pro Machines Disabled 1 | . . . 1 . . . Max in Single Turn 1 | . . . 1 . . . Machines Repaired . | . . . . . . . Machines Dismantled . | . . . . . . . Machines Sabotaged . | . . . . . . . Overloaded Fab Kills . | . . . . . . . Hacking | -11 -10 -10 -9 -9 -7 -6 --------- Run | Yrd Mat Min Mat Min Zio Pro Machines Accessed 2 | . . . 2 . . . Terminals 2 | . . . 2 . . . Fabricators . | . . . . . . . Repair Stations . | . . . . . . . Recycling Units . | . . . . . . . Scanalyzers . | . . . . . . . Garrison Access . | . . . . . . . Total Hacks 6 | . . . 6 . . . Successful 2 | . . . 2 . . . Failed 4 | . . . 4 . . . Catastrophic . | . . . . . . . Database Lockouts . | . . . . . . . Manual . | . . . . . . . Terminals 6 | . . . 6 . . . Fabricators . | . . . . . . . Repair Stations . | . . . . . . . Recycling Units . | . . . . . . . Scanalyzers . | . . . . . . . Garrison Access . | . . . . . . . Terminal Hacks 2 | . . . 2 . . . Prototype ID Bank 1 | . . . 1 . . . Unreport Threat 1 | . . . 1 . . . Fabricator Hacks . | . . . . . . . Repair Station Hacks . | . . . . . . . Recycling Unit Hacks . | . . . . . . . Scanalyzer . | . . . . . . . Garrison Access Hacks . | . . . . . . . Unauthorized Hacks . | . . . . . . . Terminals . | . . . . . . . Fabricators . | . . . . . . . Repair Stations . | . . . . . . . Recycling Units . | . . . . . . . Scanalyzers . | . . . . . . . Garrison Access . | . . . . . . . Data Cores Recovered 1 | . . . 1 . . . Used . | . . . . . . . Hacking Detections 2 | . . . 2 . . . Full Trace Events . | . . . . . . . Feedback Events . | . . . . . . . Feedback Blocked . | . . . . . . . Robot Schematics Acquired 3 | . . . . . 3 . Robots Built . | . . . . . . . Authchips . | . . . . . . . Time . | . . . . . . . Total Robot Build Rating . | . . . . . . . Part Schematics Acquired 14 | . . . . . 14 . Parts Built . | . . . . . . . Authchips . | . . . . . . . Time . | . . . . . . . Total Part Build Rating . | . . . . . . . Parts Repaired . | . . . . . . . Time . | . . . . . . . Parts Recycled . | . . . . . . . Recycled Matter . | . . . . . . . Retrieved Matter . | . . . . . . . Retrieved Components . | . . . . . . . Parts Scanalyzed . | . . . . . . . Part Schematics Acquired . | . . . . . . . Parts Damaged . | . . . . . . . Bothacking | -11 -10 -10 -9 -9 -7 -6 ------------ Run | Yrd Mat Min Mat Min Zio Pro Used RIF Installer . | . . . . . . . Robots Hacked . | . . . . . . . Non-combat . | . . . . . . . Combat . | . . . . . . . Robot Hacks Applied . | . . . . . . . Relay Couplers Released . | . . . . . . . Fabnet Peak Effective % . | . . . . . . . Robots Rewired . | . . . . . . . Allies Hacked . | . . . . . . . Hacks Repelled . | . . . . . . . Allies | -11 -10 -10 -9 -9 -7 -6 -------- Run | Yrd Mat Min Mat Min Zio Pro Total Allies 4 | . . . . . 4 . Largest Group 4 | . . . . . 4 . Highest-Rated Group 155 | . . . . . 155 . Highest-Rated Ally 40 | . . . . . 40 . Total Orders . | . . . . . . . Ally Attacks . | . . . . . . . Total Damage . | . . . . . . . Kills . | . . . . . . . Allies Corrupted . | . . . . . . . Allies Melted . | . . . . . . . Intel | -11 -10 -10 -9 -9 -7 -6 ------- Run | Yrd Mat Min Mat Min Zio Pro Robot Analysis Total . | . . . . . . . Derelict Logs Recovered 3 | . . . . 1 2 . Drone Launches . | . . . . . . . Drone Recoveries . | . . . . . . . Exploration | -11 -10 -10 -9 -9 -7 -6 ------------- Run | Yrd Mat Min Mat Min Zio Pro Turns Passed 2309 | 69 71 383 477 39 1034 236 Spaces Moved 1984 | 50 53 294 252 36 1128 171 Core 20 | 15 . . 5 . . . Treads . | . . . . . . . Legs 599 | 35 53 294 71 . 146 . Wheels 469 | . . . 115 36 318 . Hover 61 | . . . 61 . . . Flight 835 | . . . . . 664 171 Fastest Speed 50 | 50 120 120 95 110 52 52 Average Speed 101 | 109 120 120 139 110 84 109 Slowest Speed 400 | 120 120 120 400 110 142 145 Overloaded Moves . | . . . . . . . Propulsion Burnouts . | . . . . . . . Robots Hopped . | . . . . . . . Cave-ins Triggered . | . . . . . . . Exploration Rate (%) 34 | 3 9 66 25 14 88 35 Regions Visited 6 Branch Regions 4 Pre-discovered Areas 1 | . . . . . 1 . Known Exits Taken . | . . . . . . . Unknown Exits Taken 6 | 1 1 1 1 1 1 . Scrap Searched 6 | . . 1 . . 5 . Spaces Dug . | . . . . . . . Terrain Destroyed . | . . . . . . . Melee . | . . . . . . . Projectile . | . . . . . . . AOE . | . . . . . . . Terrain Rammed . | . . . . . . . Walls Destroyed . | . . . . . . . Machines Disabled . | . . . . . . . Actions | -11 -10 -10 -9 -9 -7 -6 --------- Run | Yrd Mat Min Mat Min Zio Pro Total 2189 | 64 56 313 318 35 1209 194 Wait 58 | . . . . . 58 . Move 1978 | 49 52 293 251 35 1127 171 Hop . | . . . . . . . Pick Up 34 | 7 1 5 10 . 10 1 Fast Attach . | . . . . . . . Attach 32 | 6 1 3 12 . 6 4 Detach 3 | . . 2 . . 1 . Swap 1 | . . . . . 1 . Drop 14 | . . 1 7 . 6 . Fire 37 | . 2 6 23 . . 6 Melee 27 | . . . 15 . . 12 Ram . | . . . . . . . Kick 5 | 2 . 3 . . . . Crush . | . . . . . . . Escape Stasis . | . . . . . . . Rewire . | . . . . . . . Trap . | . . . . . . . Miscellaneous . | . . . . . . . Route ------- -11/Scrapyard -10/Materials -10/Mines (discovered 2 exits: *Mat x2) -9/Materials -9/Mines -7/Zion -6/Proximity Caves History --------- Turn | Location | Event 12 | -11/Scrapyard | Discovered new exit (range 14) 70 | -11/Scrapyard | Entered Materials 102 | -10/Materials | Discovered new exit (range 15) 141 | -10/Materials | Entered Mines 194 | -10/Mines | Discovered new exit (range 13) 313 | -10/Mines | Build established: Mutant 421 | -10/Mines | A weapon hastily lodged in a ceiling crevice suddenly fell to the ground 466 | -10/Mines | Discovered new exit (range 7) 524 | -10/Mines | Entered Materials 524 | -9/Materials | Evolved 2 slots: Utility x1, Weapon x1 966 | -9/Materials | Discovered new exit (range 16) 1001 | -9/Materials | Entered Mines 1020 | -9/Mines | Learned location of 2 exits from Materials 1021 | -9/Mines | A Derelict revealed a hidden shortcut to a safe place 1040 | -9/Mines | Entered Zion 1093 | -7/Zion | Found Relay Coupler [Programmer] 1164 | -7/Zion | Given A8's code to call for help 1235 | -7/Zion | Learned 4 Factory zone layouts 1518 | -7/Zion | Learned location of 1 exit from Lower Caves 1704 | -7/Zion | Given the Hacking Drone Bay 1707 | -7/Zion | Found Prototype Device 1711 | -7/Zion | Identified Hacking Drone Bay 1829 | -7/Zion | Imprinted 1831 | -7/Zion | Declared Zion's savior 2001 | -7/Zion | Discovered new exit (range 11) 2074 | -7/Zion | Entered Proximity Caves 2226 | -6/Proximity Caves | Attracted the attention of an 0b10 checkpoint 2242 | -6/Proximity Caves | Core integrity fell below 50% 2275 | -6/Proximity Caves | Lost 4 parts (1p1n2w) 2299 | -6/Proximity Caves | Core integrity fell below 20% 2310 | -6/Proximity Caves | Destroyed by S-27 Virus with Autogun Last Messages --------------- Y-54 Guardian: "INTERCEPTING UNREGISTERED DERELICT." Mak. Flight Unit destroyed. Adv. Beam Cannon destroyed. Lgt. Ion Engine destroyed. Mak. Shrapnel Gun destroyed. Y-54 Guardian destroyed. S-27 Virus destroyed. Acquired 25 matter. S-27 Virus destroyed. VTOL Module fries itself beyond repair. Lgt. Treads fries itself beyond repair. Acquired Autogun. VTOL Module fries itself beyond repair. Acquired 10 matter. Mak. Flight Unit destroyed. Flak Gun destroyed. S-27 Virus destroyed. Autogun destroyed. Hacking Drone Bay destroyed. Map ----- +----------------------------------------------------+ | ?????????????????????????????????????????????????? | | ?????????????????????????????????????????????????? | | ?????????????????????????????????????????????????? | | ?????????????????????????????????????????????????? | | ???????????????????????????????????????????????? | | ??????????????????????????????????????????????? | | ??????????????????????????????????????????????? | | ??????????????????????????????????????????????? | | ???????????????????????????????????????????????? | | ???????????????#????????????????????????????????? | | ???????????????## ???????????????????????????????? | | ??????????????## #??????????????????????????????? | | ???????????#### ##????????????????????????????? | | ???????????# ##??????????????????????????? | | ???????????? ??????????????????????????? | | ?????????????? ??????????????????????????? | | ???????????????# ??????????????????????????? | | ????????????????? ##????????????????????????? | | ??????????????????? ##???????????????????????? | | #???????????????#???? ##??????????????????????? | | ######?????????## ?##?# #??????????????????????? | | ##????##### ## ?# ##??????????????????????? | | ##???# ## #???????????????????????? | | ####?# =%=#????????#??????????????? | | #????### ss ####### #??????????????? | | ##??????## @ #??????????????? | | ###??????# s #??????????????? | | ##?????# ###########??????????????? | | ##????# !%#????????????????????????? | | ## ##???# !##???????????????????????? | | #### ##??# ####????????????????????? | | ####??# ##?# ##??????###?????? ???? | | #?????## ### ###??? ##??? ?? | | ??????## ## ## #### ## %?? | | ???????###### ### ### #?? | | #????????????# #?## #?## ???? | | ?????????????## ##??# ##??# #### ??????? | | ??????????????#%###???# #???# ##??????????? | | ??????????????#%####??####???# ### #???????????? | | ??????????????#" #?????????# #?? ?????????? | | ??????????????#### #?????????# #??? #???????? | | ?????????????????# #?????????# #????## #???????? | | ?????????????????# ########### #??????? #??????? | | ?????????????????# % #???????? #?????? | | ?????????????????####### % ##???????? #?????? | | ???????????????????????# #?????????#?????? | | ????????????????????#### #???????????????? | | ???????????????????## ##??????????????? | | ???????????????????# ##?????????????? | | ???????????????????# % #?????????????? | +----------------------------------------------------+ Best States ------------- Heat Dissipation 28 Energy Generation 14 Energy Capacity 410 Matter Stores 300 Matter Capacity 300 Sight Range 16 Robot Scan Range 14 Terrain Scan Density 135 Armor Coverage 150 Evasion (%) 59 Item Schematics ----------------- Fusion Compressor | -7/Zion | Archive Imp. Medium Armor Plating | -7/Zion | Archive Gauss Cannon | -7/Zion | Archive Thermal Shield | -7/Zion | Archive Mass Driver | -7/Zion | Archive Remote Datajack | -7/Zion | Archive Imp. Thermal Generator | -7/Zion | Archive Hvy. Ion Cannon | -7/Zion | Archive Angular Momentum Engine | -7/Zion | Archive Imp. Cooling System | -7/Zion | Archive Hpw. Shock Rifle | -7/Zion | Archive Mak. Shrapnel Gun | -7/Zion | Archive Imp. Trap Extractor | -7/Zion | Archive Lrn. Proton Cannon | -7/Zion | Archive Robot Schematics ------------------ K-01 Serf | -7/Zion | Archive I-36 Angel | -7/Zion | Archive L-41 Fighter | -7/Zion | Archive Fabricated ------------ Nothing Alien Tech Used ----------------- None Achievements -------------- Robot Respite The One Challenges ------------ None Game ------ Seed DirtyAssembledFlightbrick Manual? 0 Play Time 00:24:28 Cumulative 3.4 hours Start 2024.03.14 @ 00:27:37 End 2024.03.14 @ 00:51:00 Sessions 1 Manual Loads 0 Difficulty Rogue Special Mode None Game No. 5 Rogue 3 Adventurer 2 Explorer 0 Win Type - Total 0 Types 0/0/0/0/0/0/0/0/0 Lore% 9 Gallery% 10 Achievement% 9 Wizard Run 0 Options --------- Layout 1 ASCII 0 Keyboard 0 Movement Arrows Keybinds 0 Fullscreen 1 Font 24/Smallcaps Map View 50x35 Zoom Use 0% Tactical HUD 0 Map Filters NONE Filters NONE Steam 1 RUN: 0d4cbde9-9844-4ff9-a109-66eda97f15c0